bitfinex/quotes_BTCUSD_20241226
["timestamp","ask_amount","ask_price","bid_price","bid_amount"]
[1735235519012,0.26259829,95860.0,95859.0,8.57e-05]
[1735235519833,0.26559829,95860.0,95859.0,8.57e-05]
[1735235520035,0.208659,95851.0,95828.0,0.15]
[1735235520240,0.01361333,95860.0,95829.0,0.31269032]
[1735235520438,0.01361333,95860.0,95841.0,0.076]
[1735235520439,0.0082724,95860.0,95841.0,0.076]
[1735235520642,0.0032724,95860.0,95842.0,0.1227772]
[1735235521055,0.0082724,95860.0,95842.0,0.1227772]
[1735235521450,0.00524272,95859.0,95842.0,0.1227772]
[1735235521696,0.00524272,95859.0,95842.0,0.10398632]
[1735235521965,0.00524272,95859.0,95850.0,0.208659]
[1735235522295,0.00524272,95859.0,95851.0,0.31264232]
[1735235522432,0.0062724,95860.0,95851.0,0.10398632]
[1735235522943,0.0032724,95860.0,95851.0,0.31264232]
[1735235523181,0.0002724,95860.0,95854.0,0.02094712]
[1735235523457,0.0022724,95860.0,95855.0,0.10398632]
[1735235523846,0.0002724,95860.0,95855.0,0.10398632]
[1735235524280,0.002,95859.0,95855.0,0.10398632]
[1735235524486,0.002,95859.0,95854.0,0.02094712]
[1735235524638,0.00524272,95858.0,95855.0,0.002]
[1735235525256,0.00524272,95858.0,95855.0,0.001]
[1735235525474,0.0002724,95860.0,95855.0,0.003]
[1735235525681,0.0002724,95860.0,95855.0,0.001]
[1735235525870,0.0002724,95860.0,95855.0,0.003]
[1735235526072,0.0052745,95859.0,95855.0,0.003]
[1735235526499,0.0052745,95859.0,95855.0,0.002]
[1735235526705,0.0052745,95859.0,95855.0,0.003]
[1735235527112,0.0052745,95859.0,95855.0,0.001]
[1735235527320,0.0052745,95859.0,95854.0,0.02094712]
[1735235527530,0.0052745,95859.0,95855.0,0.002]
[1735235527663,0.0052745,95859.0,95855.0,0.001]
[1735235528072,0.0052745,95859.0,95855.0,0.002]
[1735235528285,0.0052745,95859.0,95855.0,0.001]
[1735235529245,0.0052745,95859.0,95854.0,0.00194712]
[1735235529663,0.0052745,95859.0,95854.0,0.00294712]
[1735235530181,0.0052745,95859.0,95855.0,0.31263432]
[1735235530389,0.00795408,95859.0,95855.0,0.31263432]
[1735235530587,0.0002724,95860.0,95855.0,0.31263432]
[1735235530801,0.0002724,95860.0,95855.0,0.31363432]
[1735235530980,0.0002724,95860.0,95855.0,0.31263432]
[1735235531317,0.0002724,95860.0,95859.0,0.208639]
[1735235531521,0.0002724,95860.0,95855.0,0.01357272]
[1735235531724,0.0002724,95860.0,95855.0,0.003]
[1735235531725,0.20864,95859.0,95855.0,0.003]
[1735235531928,0.00130399,95858.0,95855.0,0.003]
[1735235532138,0.208644,95857.0,95855.0,0.001]
[1735235532373,0.17357713,95856.0,95855.0,0.001]
[1735235532600,0.26265082,95856.0,95855.0,0.001]
[1735235532780,0.208648,95855.0,95853.0,0.09368531]
[1735235532911,0.10529049,95854.0,95853.0,0.09368531]
[1735235533112,0.25529049,95854.0,95853.0,0.09368531]
[1735235533360,0.44004068,95854.0,95826.0,8.56e-05]
[1735235533575,0.208702,95830.0,95826.0,8.56e-05]
[1735235533981,0.00130443,95829.0,95826.0,8.56e-05]
[1735235534239,0.417414,95828.0,95825.0,0.0104227]
[1735235534673,0.417414,95828.0,95823.0,0.00542545]
[1735235534674,0.208707,95828.0,95823.0,0.00542545]
[1735235534851,0.208694,95834.0,95825.0,5.395e-05]
[1735235535019,0.00787609,95827.0,95826.0,0.10398632]
[1735235535217,0.208647,95856.0,95826.0,0.18008632]
[1735235535605,0.00784664,95855.0,95844.0,0.20867]
[1735235535796,0.20865,95854.0,95841.0,0.208677]
[1735235535999,0.0425315,95853.0,95829.0,0.001]
[1735235536208,0.09126269,95851.0,95829.0,0.001]
[1735235536339,0.208688,95837.0,95829.0,0.001]
[1735235536753,0.21656341,95836.0,95824.0,0.34849303]
[1735235536948,0.21656341,95836.0,95826.0,0.001]
[1735235537635,0.21656341,95836.0,95825.0,5.395e-05]
[1735235537862,0.21656341,95836.0,95825.0,0.00105395]
[1735235538326,0.21656341,95836.0,95825.0,5.395e-05]
[1735235538534,0.21656341,95836.0,95826.0,0.002]
[1735235538743,0.00787441,95836.0,95826.0,0.001]
[1735235539305,0.00787441,95835.0,95826.0,0.001]
[1735235539437,0.208681,95840.0,95826.0,0.001]
[1735235539618,0.00787441,95834.0,95826.0,0.001]
[1735235539817,0.208681,95840.0,95826.0,0.001]
[1735235540025,0.00787441,95839.0,95826.0,0.001]
[1735235540433,0.00787441,95839.0,95830.0,0.208702]
[1735235540649,0.208651,95854.0,95840.0,0.20868]
[1735235541067,0.208661,95849.0,95835.0,0.208691]
[1735235541307,0.00780393,95853.0,95839.0,0.208681]
[1735235541308,0.208655,95852.0,95839.0,0.208681]
[1735235541518,0.208655,95852.0,95831.0,0.10398632]
[1735235541726,0.208659,95850.0,95831.0,0.10398632]
[1735235542137,0.208663,95848.0,95833.0,0.208696]
[1735235542358,0.00780393,95849.0,95830.0,0.002]
[1735235542571,0.208686,95838.0,95830.0,0.002]
[1735235542795,0.208674,95843.0,95830.0,0.002]
[1735235543006,0.208695,95834.0,95830.0,0.002]
[1735235543203,0.41739,95834.0,95829.0,0.02104865]
[1735235543405,0.00780393,95833.0,95829.0,0.02104865]
[1735235543803,0.208678,95841.0,95829.0,0.02104865]
[1735235544008,0.00780393,95840.0,95829.0,0.02104865]
[1735235544245,0.208683,95839.0,95829.0,0.02104865]
[1735235544471,0.208683,95839.0,95830.0,0.002]
[1735235544472,0.001,95834.0,95830.0,0.002]
[1735235544675,0.001,95834.0,95831.0,0.2087]
[1735235544893,0.001,95834.0,95829.0,0.12503497]
[1735235545095,0.001,95834.0,95829.0,0.12703497]
[1735235545302,0.20869,95836.0,95829.0,0.02104865]
[1735235545705,0.00780393,95835.0,95829.0,0.02104865]
[1735235546263,0.00780393,95835.0,95833.0,0.001]
[1735235546556,0.208682,95840.0,95833.0,0.001]
[1735235547123,0.00780393,95839.0,95833.0,0.001]
[1735235547362,0.001,95835.0,95833.0,0.209695]
[1735235547611,0.001,95835.0,95833.0,0.208695]
[1735235547821,0.001,95835.0,95833.0,0.210695]
[1735235548233,0.208673,95844.0,95829.0,0.23075165]
[1735235548409,0.001,95839.0,95833.0,0.002]
[1735235548854,0.00780393,95838.0,95833.0,0.002]
[1735235549063,0.208688,95837.0,95833.0,0.002]
[1735235549460,0.208692,95835.0,95833.0,0.002]
[1735235549644,0.00780393,95836.0,95829.0,0.02104865]
[1735235549995,0.001,95835.0,95833.0,0.002]
[1735235550214,0.00880393,95835.0,95833.0,0.002]
[1735235550429,0.208682,95840.0,95829.0,0.02104865]
[1735235550642,0.00780393,95834.0,95833.0,0.002]
[1735235550849,0.208682,95840.0,95829.0,0.02104865]
[1735235551031,0.0077994,95839.0,95829.0,0.02104865]
[1735235551243,0.208682,95840.0,95833.0,0.002]
[1735235551456,0.0077994,95838.0,95833.0,0.003]
[1735235551877,0.001,95834.0,95833.0,0.004]
[1735235553008,0.0077994,95834.0,95833.0,0.001]
[1735235553224,0.0001712,95838.0,95833.0,0.001]
[1735235553437,0.0077994,95834.0,95833.0,0.003]
[1735235553663,0.208687,95837.0,95833.0,0.003]
[1735235553867,0.0077994,95834.0,95833.0,0.003]
[1735235554083,0.001,95834.0,95833.0,0.005]
[1735235554293,0.0001712,95838.0,95833.0,0.10498632]
[1735235554500,0.0001712,95838.0,95837.0,0.208687]
[1735235554708,0.0001712,95838.0,95837.0,0.31267332]
[1735235555218,0.0001712,95838.0,95837.0,0.39217332]
[1735235556377,0.0001712,95838.0,95837.0,0.31267332]
[1735235556582,0.0011712,95838.0,95837.0,0.002]
[1735235556795,0.02215552,95838.0,95832.0,0.09357632]
[1735235557216,0.02315552,95838.0,95837.0,0.002]
[1735235557421,0.208687,95837.0,95832.0,0.09357632]
[1735235557660,0.208687,95837.0,95825.0,0.20885055]
[1735235558081,0.46132635,95837.0,95825.0,0.20885055]
[1735235558285,0.04395235,95837.0,95832.0,0.002]
[1735235558492,0.208696,95834.0,95832.0,0.002]
[1735235559315,0.208696,95834.0,95828.0,0.00642454]
[1735235559538,0.208689,95836.0,95828.0,0.00542454]
[1735235559745,0.208689,95836.0,95832.0,0.001]
[1735235559942,0.41738,95836.0,95832.0,0.001]
[1735235560942,0.208689,95836.0,95832.0,0.001]
[1735235561164,0.00783038,95835.0,95832.0,0.002]
[1735235561463,0.208694,95834.0,95828.0,0.00542454]
[1735235561666,0.208694,95834.0,95828.0,0.00642454]
[1735235561840,0.208689,95836.0,95828.0,0.00642454]
[1735235562004,0.00783038,95833.0,95828.0,0.00542454]
[1735235562434,0.0001712,95838.0,95832.0,0.001]
[1735235562645,0.22957302,95837.0,95832.0,0.001]
[1735235562821,0.208688,95837.0,95828.0,0.00542454]
[1735235563242,0.208688,95837.0,95828.0,0.00642454]
[1735235563523,0.001,95833.0,95828.0,0.00642454]
[1735235563744,0.0001712,95836.0,95829.0,0.208705]
[1735235563964,0.0001712,95836.0,95833.0,0.208695]
[1735235564181,0.0001712,95836.0,95835.0,0.208692]
[1735235564403,0.0001712,95836.0,95835.0,0.31267832]
[1735235566204,0.0001712,95836.0,95835.0,0.31367832]
[1735235566971,0.0001712,95836.0,95835.0,0.65941794]
[1735235567382,0.0011712,95836.0,95835.0,0.65941794]
[1735235567824,0.0011712,95836.0,95835.0,0.31267832]
[1735235568032,0.0011712,95836.0,95835.0,0.31367832]
[1735235568388,0.0011712,95836.0,95835.0,0.31267832]
[1735235568790,0.0011712,95836.0,95835.0,0.31367832]
[1735235569388,0.0011712,95836.0,95835.0,0.31267832]
[1735235569594,0.0001712,95836.0,95835.0,0.45417797]
[1735235570464,0.0011712,95836.0,95835.0,0.45417797]
[1735235570670,0.0001712,95836.0,95835.0,0.45417797]
[1735235571148,0.0001712,95836.0,95835.0,0.68250022]
[1735235571404,0.0001712,95836.0,95835.0,0.65954045]
[1735235571664,0.0001712,95836.0,95835.0,0.65854045]
[1735235571913,0.0011712,95836.0,95835.0,0.70494045]
[1735235572417,0.0011712,95836.0,95835.0,0.9379055]
[1735235572664,0.0021712,95836.0,95835.0,0.9379055]
[1735235573507,0.0021712,95836.0,95835.0,0.70494045]
[1735235574269,0.0021712,95836.0,95835.0,0.65954045]
[1735235575737,0.0021712,95836.0,95835.0,0.76352677]
[1735235576174,0.0001712,95838.0,95835.0,0.97221877]
[1735235576398,0.0001712,95838.0,95837.0,0.208687]
[1735235576623,0.0001712,95838.0,95837.0,0.31267332]
[1735235576847,0.0001714,95860.0,95837.0,0.31267332]
[1735235576848,0.0001714,95860.0,95839.0,0.1]
[1735235577077,0.0001714,95860.0,95859.0,0.208639]
[1735235577301,0.0001714,95860.0,95859.0,0.31262532]
[1735235577962,0.0001714,95860.0,95859.0,0.54482532]
[1735235578447,0.0001714,95860.0,95859.0,1.06188745]
[1735235578915,0.0001714,95860.0,95859.0,1.06388745]
[1735235579117,4e-07,95860.0,95859.0,1.79775098]
[1735235579352,4e-07,95860.0,95859.0,1.79275098]
[1735235579771,4e-07,95860.0,95859.0,1.84383142]
[1735235580003,0.0001714,95897.0,95859.0,1.84383142]
[1735235580004,0.0001714,95897.0,95880.0,0.09126269]
[1735235580281,0.000689,95897.0,95895.0,0.20856]
[1735235581250,0.000689,95897.0,95881.0,0.10398632]
[1735235581475,0.20858,95887.0,95861.0,0.15]
[1735235581713,0.208577,95888.0,95875.0,0.208603]
[1735235581980,0.208577,95888.0,95887.0,0.14040947]
[1735235582854,0.0831,95896.0,95884.0,0.02119268]
[1735235582855,0.208579,95887.0,95884.0,0.02119268]
[1735235583476,0.005,95888.0,95884.0,0.02119268]
[1735235584191,0.005,95888.0,95873.0,0.208609]
[1735235584397,0.002,95888.0,95874.0,0.05084907]
[1735235584887,0.002,95888.0,95887.0,0.001]
[1735235585036,0.208576,95889.0,95874.0,0.05084907]
[1735235585239,0.208576,95889.0,95884.0,0.002]
[1735235585869,0.208576,95889.0,95875.0,0.208604]
[1735235586069,0.208576,95889.0,95875.0,0.25559319]
[1735235586271,0.208576,95889.0,95887.0,0.002]
[1735235588024,0.208576,95889.0,95884.0,0.02103462]
[1735235588769,0.208576,95889.0,95884.0,0.02403462]
[1735235589113,0.208576,95889.0,95884.0,0.00203461]
[1735235589311,0.208576,95889.0,95884.0,0.00403461]
[1735235589515,0.2087472,95889.0,95884.0,0.00403461]
[1735235589710,0.0001712,95889.0,95884.0,0.00403461]
[1735235589945,0.0001712,95889.0,95885.0,0.22942441]
[1735235590144,0.0001712,95889.0,95886.0,0.13645849]
[1735235590343,0.0001712,95889.0,95886.0,0.10398632]
[1735235590804,0.0001712,95889.0,95887.0,0.208578]
[1735235590974,6.682e-05,95889.0,95887.0,0.31256432]
[1735235591572,6.682e-05,95889.0,95888.0,0.10398632]
[1735235592202,6.682e-05,95889.0,95887.0,0.208578]
[1735235592409,6.682e-05,95889.0,95887.0,0.31256432]
[1735235592831,6.682e-05,95889.0,95888.0,0.002]
[1735235593281,6.682e-05,95889.0,95888.0,0.006]
[1735235593483,6.682e-05,95889.0,95888.0,0.002]
[1735235593900,6.682e-05,95889.0,95888.0,0.10598632]
[1735235594335,6.682e-05,95889.0,95888.0,0.10998632]
[1735235594739,6.682e-05,95889.0,95888.0,0.10798632]
[1735235595569,6.682e-05,95889.0,95888.0,0.10698632]
[1735235595977,6.682e-05,95889.0,95888.0,0.10898632]
[1735235597149,6.682e-05,95889.0,95888.0,0.006]
[1735235597353,0.2355811,95889.0,95888.0,0.006]
[1735235597560,0.2295042,95889.0,95888.0,0.006]
[1735235597768,0.23551349,95889.0,95888.0,0.006]
[1735235598222,0.21468579,95889.0,95888.0,0.006]
[1735235598427,0.21468579,95889.0,95888.0,0.004]
[1735235598631,0.00611179,95889.0,95879.0,0.09356031]
[1735235598808,0.208594,95880.0,95877.0,0.02064642]
[1735235599234,0.00611179,95879.0,95878.0,0.10398632]
[1735235599438,0.00611179,95879.0,95877.0,0.00164642]
[1735235599640,0.005,95889.0,95869.0,0.01647623]
[1735235599858,0.0060597,95878.0,95872.0,0.208611]
[1735235600047,0.002,95889.0,95877.0,0.001]
[1735235600199,0.208567,95892.0,95877.0,0.10398632]
[1735235600408,0.0060597,95888.0,95879.0,0.208596]
[1735235600617,0.0001714,95903.0,95880.0,0.10398632]
[1735235600818,0.208559,95896.0,95881.0,0.208591]
[1735235601077,0.21461974,95896.0,95882.0,0.10398632]
[1735235601264,0.21461974,95896.0,95883.0,0.208587]
[1735235601853,0.00606074,95896.0,95887.0,0.208577]
[1735235602169,0.003,95889.0,95887.0,0.417155]
[1735235602400,0.003,95889.0,95887.0,0.208577]
[1735235602937,0.209247,95897.0,95884.0,0.10398632]
[1735235603130,0.00606074,95888.0,95884.0,0.10398632]
[1735235603331,0.209247,95897.0,95887.0,0.004]
[1735235603580,0.417805,95897.0,95887.0,0.002]
[1735235603791,0.209247,95897.0,95887.0,0.002]
[1735235603999,0.001,95889.0,95887.0,0.006]
[1735235604227,0.001,95889.0,95884.0,8.56e-05]
[1735235604437,0.001,95889.0,95884.0,0.0030856]
[1735235604438,0.208577,95888.0,95884.0,0.0030856]
[1735235604640,0.31386686,95888.0,95884.0,0.0030856]
[1735235604848,0.208581,95886.0,95884.0,0.0030856]
[1735235605071,0.00130377,95885.0,95884.0,0.0030856]
[1735235605707,0.00130377,95885.0,95884.0,8.56e-05]
[1735235606189,0.20927641,95885.0,95884.0,8.56e-05]
[1735235606399,0.21407998,95885.0,95884.0,8.56e-05]
[1735235606601,0.36407998,95885.0,95884.0,8.56e-05]
[1735235606777,0.36807998,95885.0,95884.0,8.56e-05]
[1735235607548,0.26509366,95885.0,95884.0,8.56e-05]
[1735235608194,0.26109366,95885.0,95884.0,8.56e-05]
[1735235608458,0.00710734,95885.0,95884.0,8.56e-05]
[1735235608870,0.01110734,95885.0,95884.0,8.56e-05]
[1735235609084,0.00710734,95885.0,95884.0,8.56e-05]
[1735235609281,0.00610734,95885.0,95875.0,0.2076886]
[1735235609484,0.01010734,95885.0,95875.0,0.2076886]
[1735235609705,0.00602191,95884.0,95875.0,0.2076886]
[1735235609888,0.00184175,95889.0,95875.0,0.2076886]
[1735235610141,0.00602191,95883.0,95875.0,0.2076886]
[1735235610344,0.001,95885.0,95875.0,0.2076886]
[1735235610544,0.00602191,95882.0,95875.0,0.2076886]
[1735235610742,0.001,95885.0,95875.0,0.2076886]
[1735235610865,0.00602191,95881.0,95877.0,0.02104283]
[1735235611059,0.001,95885.0,95877.0,0.02104283]
[1735235611509,0.00802922,95884.0,95877.0,0.02104283]
[1735235611714,0.00802922,95884.0,95877.0,0.22964283]
[1735235612114,0.00802922,95884.0,95877.0,0.02104283]
[1735235612315,0.00602191,95884.0,95877.0,0.02104283]
[1735235612718,0.00184175,95889.0,95878.0,0.208598]
[1735235612962,0.00602191,95883.0,95877.0,0.02504283]
[1735235613173,0.208585,95885.0,95877.0,0.02104283]
[1735235613397,0.00602191,95882.0,95877.0,0.02104283]
[1735235613607,0.208585,95885.0,95877.0,0.02104283]
[1735235613806,0.00602191,95881.0,95877.0,0.02104283]
[1735235614010,0.208585,95885.0,95877.0,0.02104283]
[1735235614215,0.00602191,95880.0,95877.0,0.00204283]
[1735235614426,0.208585,95885.0,95877.0,0.00504283]
[1735235614604,0.00602191,95879.0,95878.0,0.208598]
[1735235614804,0.21041675,95889.0,95878.0,0.208598]
[1735235615016,0.04189828,95888.0,95878.0,0.208598]
[1735235615219,0.208578,95887.0,95877.0,0.00404283]
[1735235615589,0.21041675,95889.0,95878.0,0.208598]
[1735235615796,0.00602191,95886.0,95878.0,0.208598]
[1735235616003,0.21041675,95889.0,95878.0,0.209598]
[1735235616223,0.417171,95884.0,95878.0,0.001]
[1735235616427,0.208595,95880.0,95878.0,0.001]
[1735235616645,0.208589,95882.0,95878.0,0.002]
[1735235616891,0.00607228,95879.0,95878.0,0.002]
[1735235617062,0.00184175,95889.0,95878.0,0.002]
[1735235617292,0.0001712,95885.0,95878.0,0.002]
[1735235617428,0.0001712,95885.0,95878.0,0.001]
[1735235617643,0.0001712,95885.0,95883.0,0.208585]
[1735235618078,0.0001712,95885.0,95884.0,0.14590432]
[1735235618311,0.0001712,95885.0,95884.0,0.10398632]
[1735235618915,0.0011712,95885.0,95884.0,0.10398632]
[1735235619615,0.0001712,95885.0,95884.0,0.45250563]
[1735235620093,0.00184175,95889.0,95885.0,0.417166]
[1735235620285,0.00184175,95889.0,95887.0,0.208578]
[1735235620513,0.00184175,95889.0,95888.0,0.10398632]
[1735235621721,0.00184175,95889.0,95888.0,0.44950563]
[1735235622151,0.00184175,95889.0,95888.0,0.45450563]
[1735235623065,0.00184175,95889.0,95888.0,0.70450563]
[1735235623293,0.0001714,95903.0,95901.0,0.208548]
[1735235623495,0.00022314,95902.0,95901.0,0.31253432]
[1735235624289,0.00022314,95902.0,95901.0,0.10398632]
[1735235624491,0.00022314,95902.0,95901.0,0.31253432]
[1735235624713,0.00122314,95902.0,95901.0,0.31753432]
[1735235625123,0.00122314,95902.0,95901.0,0.32153432]
[1735235625616,0.00022314,95902.0,95901.0,0.65805363]
[1735235625778,0.00322314,95902.0,95901.0,0.65805363]
[1735235625998,0.00322314,95902.0,95901.0,0.74265284]
[1735235626217,0.00322314,95902.0,95901.0,0.65805363]
[1735235626639,0.00322314,95902.0,95901.0,0.42697049]
[1735235627041,0.00022314,95902.0,95901.0,0.44134612]
[1735235627440,0.00122314,95902.0,95901.0,0.44134612]
[1735235627782,0.00122314,95902.0,95901.0,0.51834612]
[1735235627985,0.00322314,95902.0,95901.0,0.62533244]
[1735235628216,0.00322314,95902.0,95901.0,0.67343244]
[1735235628424,0.00322314,95902.0,95901.0,0.94643244]
[1735235628630,0.00222314,95902.0,95901.0,0.94343244]
[1735235628829,0.00222314,95902.0,95901.0,1.33777606]
[1735235629045,0.00322314,95902.0,95901.0,1.33777606]
[1735235629831,0.00322314,95902.0,95901.0,1.23378974]
[1735235630050,0.00122314,95902.0,95901.0,1.32744532]
[1735235630215,0.00022314,95902.0,95901.0,1.97174532]
[1735235630412,0.00122314,95902.0,95901.0,1.97174532]
[1735235630620,0.00222314,95902.0,95901.0,2.07881714]
[1735235631087,0.00122314,95902.0,95901.0,2.07881714]
[1735235631443,0.0001714,95932.0,95930.0,0.208485]
[1735235631644,0.0002629,95931.0,95930.0,0.208485]
[1735235631852,0.0002629,95931.0,95930.0,0.31247132]
[1735235632068,0.0002629,95931.0,95930.0,0.34371845]
[1735235632268,0.0002629,95931.0,95930.0,0.42071845]
[1735235632898,0.208432,95955.0,95930.0,0.42071845]
[1735235632899,0.20493829,95955.0,95942.0,0.208458]
[1735235633167,0.20502997,95955.0,95942.0,0.208458]
[1735235634078,0.208441,95951.0,95935.0,0.208474]
[1735235634291,0.208452,95946.0,95942.0,0.001]
[1735235634700,0.208445,95949.0,95942.0,0.001]
[1735235634873,0.208433,95954.0,95942.0,0.02300459]
[1735235635082,0.208433,95954.0,95939.0,0.32029963]
[1735235635314,0.006,95951.0,95939.0,0.32029963]
[1735235635691,0.001,95946.0,95939.0,0.32029963]
[1735235635905,0.001,95946.0,95939.0,0.22903694]
[1735235636109,0.006,95951.0,95939.0,0.22903694]
[1735235636305,0.00634597,95945.0,95939.0,0.22903694]
[1735235636693,0.008,95951.0,95939.0,0.22903694]
[1735235636889,0.002,95951.0,95939.0,0.22903694]
[1735235637074,0.002,95951.0,95943.0,0.208455]
[1735235637269,0.004,95949.0,95943.0,0.208455]
[1735235637475,0.002,95951.0,95943.0,0.208455]
[1735235637682,0.208433,95954.0,95943.0,0.208455]
[1735235637884,0.005,95951.0,95939.0,0.12555926]
[1735235638111,0.005,95951.0,95947.0,0.208447]
[1735235638312,0.005,95951.0,95948.0,0.208445]
[1735235638743,9.168e-05,95955.0,95948.0,0.208445]
[1735235638949,0.00634597,95950.0,95948.0,0.208445]
[1735235639154,9.168e-05,95955.0,95945.0,0.208451]
[1735235639349,0.00634597,95949.0,95946.0,0.10398632]
[1735235639549,0.208433,95954.0,95940.0,0.214809]
[1735235639761,0.208433,95954.0,95948.0,0.003]
[1735235639934,9.168e-05,95955.0,95940.0,0.19524901]
[1735235640154,9.168e-05,95955.0,95941.0,0.208461]
[1735235640366,0.20852268,95955.0,95942.0,0.208459]
[1735235640763,0.20852268,95955.0,95948.0,0.004]
[1735235641091,9.168e-05,95955.0,95942.0,0.208459]
[1735235641325,0.20852268,95955.0,95946.0,0.003]
[1735235641443,0.41695368,95955.0,95946.0,0.003]
[1735235641643,9.168e-05,95955.0,95946.0,0.003]
[1735235641845,9.168e-05,95955.0,95947.0,0.25055777]
[1735235642045,9.168e-05,95955.0,95948.0,0.005]
[1735235642363,9.168e-05,95955.0,95948.0,0.002]
[1735235642561,0.000171,95954.0,95948.0,0.208446]
[1735235642764,0.000171,95954.0,95953.0,0.208435]
[1735235642964,0.000171,95954.0,95953.0,0.38535245]
[1735235643443,0.000171,95954.0,95953.0,0.50835245]
[1735235643620,0.000171,95954.0,95953.0,0.73895245]
[1735235643820,0.000171,95954.0,95953.0,0.78725245]
[1735235644962,0.000171,95954.0,95953.0,0.88725245]
[1735235645158,0.000171,95954.0,95953.0,0.88825245]
[1735235645362,0.018,95954.0,95953.0,1.43455245]
[1735235645529,0.000171,95981.0,95968.0,0.539002]
[1735235645693,0.000171,95981.0,95968.0,0.82739559]
[1735235646328,0.000171,95981.0,95968.0,0.85039559]
[1735235646867,0.000171,95981.0,95968.0,0.89869559]
[1735235647824,0.0092,95969.0,95968.0,0.89969559]
[1735235648037,0.0152,95969.0,95968.0,0.39498832]
[1735235648236,0.0152,95969.0,95968.0,0.10598632]
[1735235648628,0.0152,95969.0,95968.0,0.12676337]
[1735235649274,0.0092,95969.0,95968.0,0.11574968]
[1735235649480,0.0002,95969.0,95968.0,0.11674968]
[1735235649699,0.0062,95969.0,95968.0,0.11674968]
[1735235649894,0.0062,95969.0,95968.0,0.11574968]
[1735235650914,0.0062,95969.0,95968.0,0.01176336]
[1735235651065,0.0152,95969.0,95968.0,0.01276336]
[1735235651507,0.0002,95969.0,95968.0,0.01176336]
[1735235651714,0.0092,95969.0,95968.0,0.01776336]
[1735235652037,0.0092,95969.0,95968.0,0.01176336]
[1735235652247,0.0002,95969.0,95968.0,0.38843585]
[1735235652450,0.0022,95969.0,95968.0,0.40443585]
[1735235652652,0.0022,95969.0,95968.0,0.39543585]
[1735235653063,0.0012,95969.0,95968.0,0.38843585]
[1735235653267,0.0022,95969.0,95968.0,0.39343585]
[1735235653475,0.0032,95969.0,95968.0,0.39443585]
[1735235653936,0.003371,95969.0,95968.0,0.39443585]
[1735235654363,1.127e-05,95969.0,95968.0,0.39443585]
[1735235654589,1.127e-05,95969.0,95968.0,0.38943585]
[1735235654776,1.127e-05,95969.0,95968.0,0.38843585]
[1735235654966,0.00101127,95969.0,95968.0,0.39343585]
[1735235655177,0.00201127,95969.0,95968.0,0.40243585]
[1735235655353,0.00101127,95969.0,95968.0,0.39743585]
[1735235655548,0.00201127,95969.0,95968.0,0.40643585]
[1735235655736,0.00301127,95969.0,95968.0,0.41143585]
[1735235655940,0.00201127,95969.0,95968.0,0.39343585]
[1735235656143,0.01101127,95969.0,95968.0,0.39443585]
[1735235656344,0.00901127,95969.0,95968.0,0.38943585]
[1735235656660,0.01801127,95969.0,95968.0,0.38843585]
[1735235656883,0.02701127,95969.0,95968.0,0.38943585]
[1735235658038,0.01801127,95969.0,95968.0,0.38943585]
[1735235658240,0.01801127,95969.0,95968.0,0.26674968]
[1735235658442,0.02701127,95969.0,95968.0,0.26774968]
[1735235658623,0.00901127,95969.0,95968.0,0.26674968]
[1735235658820,1.127e-05,95969.0,95968.0,0.26574968]
[1735235659022,0.00901127,95969.0,95968.0,0.01276336]
[1735235659374,0.15036756,95969.0,95968.0,0.001]
[1735235659580,0.13759277,95969.0,95968.0,0.002]
[1735235659782,0.01560645,95969.0,95968.0,0.001]
[1735235659990,0.208415,95962.0,95961.0,0.09344915]
[1735235660400,0.208415,95962.0,95940.0,0.10520009]
[1735235660584,0.208418,95961.0,95948.0,0.208446]
[1735235660740,0.21369658,95961.0,95949.0,0.04379495]
[1735235661106,0.00527858,95961.0,95950.0,0.208441]
[1735235661293,0.00527858,95961.0,95950.0,0.09126269]
[1735235661446,0.208405,95967.0,95957.0,0.208426]
[1735235661658,0.01001127,95969.0,95957.0,0.29968869]
[1735235661884,0.00527858,95966.0,95963.0,0.208413]
[1735235662084,1.127e-05,95969.0,95967.0,0.208402]
[1735235662879,0.00901127,95969.0,95967.0,0.208402]
[1735235663498,0.01001127,95969.0,95968.0,0.10398632]
[1735235663698,0.01101127,95969.0,95968.0,0.10398632]
[1735235663903,0.01101127,95969.0,95968.0,0.17935843]
[1735235665036,1.127e-05,95969.0,95968.0,0.32935843]
[1735235665263,0.00201127,95969.0,95968.0,0.32935843]
[1735235665492,0.0001714,95978.0,95970.0,0.1]
[1735235665679,0.0001714,95978.0,95977.0,0.208383]
[1735235666012,0.0001714,95978.0,95977.0,0.31236932]
[1735235667005,0.0091714,95978.0,95977.0,0.31236932]
[1735235667570,0.0091714,95978.0,95977.0,0.45192733]
[1735235667916,0.0091714,95978.0,95977.0,0.72492733]
[1735235668057,0.0091714,95978.0,95977.0,0.80817188]
[1735235668866,0.0091714,95978.0,95977.0,1.0121245]
[1735235669475,0.0181714,95978.0,95977.0,1.0121245]
[1735235670105,0.0091714,95978.0,95977.0,1.0121245]
[1735235671120,0.0001714,95978.0,95977.0,1.5584245]
[1735235671714,0.0091714,95978.0,95977.0,1.5584245]
[1735235672082,0.0091714,95978.0,95977.0,1.4354245]
[1735235672289,0.0181714,95978.0,95977.0,1.35217995]
[1735235672521,0.0181714,95978.0,95977.0,0.70189363]
[1735235673144,0.00396733,95978.0,95977.0,0.70189363]
[1735235674174,0.00396733,95978.0,95977.0,0.51389363]
[1735235674313,0.00396733,95978.0,95977.0,0.70148327]
[1735235674519,0.00396733,95978.0,95977.0,0.90986627]
[1735235674727,0.00396733,95978.0,95977.0,1.57916627]
[1735235674972,0.00396733,95978.0,95977.0,1.45616627]
[1735235676850,0.00396733,95978.0,95977.0,1.55616627]
[1735235677298,0.00396733,95978.0,95977.0,1.67916627]
[1735235677911,0.0002,96009.0,95997.0,0.208339]
[1735235678210,0.00032614,95998.0,95997.0,0.22520099]
[1735235679126,0.00032614,95998.0,95995.0,0.09234299]
[1735235679335,0.00032614,95998.0,95990.0,0.208354]
[1735235679542,0.00232614,95998.0,95997.0,0.014]
[1735235679947,0.00132614,95998.0,95997.0,0.008]
[1735235680349,0.00032614,95998.0,95996.0,0.09329381]
[1735235680550,0.00132614,95998.0,95996.0,0.09329381]
[1735235680801,0.00132614,95998.0,95994.0,0.208345]
[1735235680976,0.00132614,95998.0,95997.0,0.208339]
[1735235681412,0.00232614,95998.0,95997.0,0.208339]